fUSD/lending_fUSD_20241219
["ID","MTS","AMOUNT","RATE_DAILY","PERIOD"]
[345980208,1734594665053,-500.0,0.00022191,4]
[345980209,1734594665064,-512.10435224,0.00022191,4]
[345980210,1734594665073,-500.0,0.00022191,4]
[345980211,1734594665082,-500.0,0.00022191,4]
[345980212,1734594665091,-500.0,0.00022191,4]
[345980213,1734594665101,-500.0,0.00022191,4]
[345980214,1734594665110,-500.0,0.00022191,4]
[345980215,1734594665120,-612.52,0.00022191,4]
[345980216,1734594665129,-360.44859157,0.00022191,4]
[345980217,1734594665138,-500.0,0.00022191,4]
[345980218,1734594665148,-500.0,0.00022191,4]
[345980219,1734594665157,-500.0,0.00022191,4]
[345980220,1734594665166,-594.89,0.00022191,4]
[345980221,1734594665176,-500.0,0.00022191,4]
[345980222,1734594665185,-1624.05,0.00022191,4]
[345980223,1734594665197,-500.0,0.00022191,4]
[345980224,1734594665206,-500.0,0.00022191,4]
[345980225,1734594665215,-500.0,0.00022191,4]
[345980226,1734594665224,-500.0,0.00022191,4]
[345980227,1734594665233,-500.0,0.00022191,4]
[345980228,1734594665245,-500.0,0.00022191,4]
[345980229,1734594665254,-543.15,0.00022191,4]
[345980230,1734594665264,-500.0,0.00022191,4]
[345980231,1734594665273,-621.9966717,0.00022191,4]
[345980232,1734594665283,-500.0,0.00022191,4]
[345980233,1734594665293,-150.0,0.00022191,2]
[345980234,1734594665302,-500.0,0.00022191,4]
[345980235,1734594665311,-2746.0,0.00022191,4]
[345980236,1734594665320,-500.0,0.00022191,4]
[345980237,1734594665329,-500.0,0.00022191,4]
[345980238,1734594665338,-500.0,0.00022191,4]
[345980239,1734594665347,-1474.0,0.00022191,4]
[345980240,1734594665358,-500.0,0.00022191,4]
[345980241,1734594665367,-900.07,0.00022191,4]
[345980242,1734594665376,-233.73629347,0.00022191,4]
[345980243,1734594665385,-500.0,0.00022191,4]
[345980244,1734594665394,-335.42,0.00022191,4]
[345980245,1734594665403,-500.0,0.00022191,4]
[345980246,1734594665412,-3405.79,0.00022191,4]
[345980247,1734594665421,-500.0,0.00022191,4]
[345980248,1734594665430,-1114.18,0.00022191,4]
[345980249,1734594665439,-624.44122426,0.00022191,4]
[345980250,1734594665448,-500.0,0.00022191,4]
[345980251,1734594665457,-500.0,0.00022191,4]
[345980252,1734594665466,-562.97,0.00022191,4]
[345980253,1734594665475,-900.46,0.00022191,4]
[345980254,1734594665484,-230.66,0.00022191,4]
[345980255,1734594665493,-1241.16,0.00022191,4]
[345980256,1734594665502,-500.0,0.00022191,4]
[345980257,1734594665511,-500.0,0.00022191,4]
[345980258,1734594665520,-386.98025125,0.00022191,4]
[345980259,1734594665530,-950.93,0.00022191,4]
[345980260,1734594665540,-500.0,0.00022191,4]
[345980261,1734594665549,-285.76641015,0.00022191,4]
[345980262,1734594665558,-523.92,0.00022191,4]
[345980263,1734594665567,-628.51533754,0.00022191,4]
[345980264,1734594665576,-582.1657776,0.00022191,4]
[345980265,1734594665586,-500.0,0.00022191,4]
[345980266,1734594665595,-500.0,0.00022191,4]
[345980267,1734594665604,-500.0,0.00022191,4]
[345980268,1734594665613,-500.0,0.00022191,4]
[345980269,1734594665622,-500.0,0.00022191,4]
[345980270,1734594665631,-500.0,0.00022191,4]
[345980271,1734594665640,-500.0,0.00022191,4]
[345980272,1734594665649,-500.0,0.00022191,4]
[345980273,1734594665659,-611.56,0.00022191,4]
[345980274,1734594665668,-500.0,0.00022191,4]
[345980275,1734594665677,-500.0,0.00022191,4]
[345980276,1734594665685,-1000.0,0.00022191,4]
[345980277,1734594665694,-500.0,0.00022191,4]
[345980278,1734594665704,-547.69,0.00022191,4]
[345980279,1734594665713,-500.0,0.00022191,4]
[345980280,1734594665722,-665.47,0.00022191,4]
[345980281,1734594665731,-537.54,0.00022191,4]
[345980282,1734594665740,-659.2,0.00022191,4]
[345980283,1734594665750,-599.49,0.00022191,4]
[345980284,1734594665759,-635.14,0.00022191,4]
[345980285,1734594665768,-1632.51,0.00022191,4]
[345980286,1734594665777,-1327.27,0.00022191,4]
[345980287,1734594665787,-1410.34,0.00022191,4]
[345980288,1734594665797,-500.0,0.00022191,4]
[345980289,1734594665806,-500.0,0.00022191,4]
[345980290,1734594665816,-500.0,0.00022191,4]
[345980291,1734594665826,-671.74,0.00022191,4]
[345980292,1734594665835,-775.95,0.00022191,4]
[345980293,1734594665845,-786.96,0.00022191,4]
[345980294,1734594665854,-500.0,0.00022191,4]
[345980295,1734594665864,-500.0,0.00022191,4]
[345980296,1734594665873,-730.93,0.00022191,4]
[345980297,1734594665883,-784.28,0.00022191,4]
[345980298,1734594665892,-500.0,0.00022191,4]
[345980299,1734594665902,-500.0,0.00022191,4]
[345980300,1734594665912,-500.0,0.00022191,4]
[345980301,1734594665922,-500.0,0.00022191,4]
[345980302,1734594665931,-794.81,0.00022191,4]
[345980303,1734594665941,-500.0,0.00022191,4]
[345980304,1734594665950,-1047.83,0.00022191,4]
[345980305,1734594665960,-500.0,0.00022191,4]
[345980306,1734594665970,-500.0,0.00022191,4]
[345980307,1734594665980,-993.85,0.00022191,4]
[345980308,1734594665989,-500.0,0.00022191,4]
[345980309,1734594666000,-2127.12,0.00022191,4]
[345980310,1734594666010,-1761.13,0.00022191,4]
[345980311,1734594666020,-165.97,0.00022191,4]
[345980312,1734594666030,-500.0,0.00022191,4]
[345980313,1734594666039,-559.18,0.00022191,4]
[345980314,1734594666048,-500.0,0.00022191,4]
[345980315,1734594666058,-285.81,0.00022191,4]
[345980316,1734594666068,-500.0,0.00022191,4]
[345980317,1734594666078,-500.0,0.00022191,4]
[345980318,1734594666088,-500.0,0.00022191,4]
[345980319,1734594666098,-709.05,0.00022191,4]
[345980320,1734594666108,-1737.07,0.00022191,4]
[345980321,1734594666118,-500.0,0.00022191,4]
[345980322,1734594666128,-507.26,0.00022191,4]
[345980323,1734594666138,-500.0,0.00022191,4]
[345980324,1734594666148,-500.0,0.00022191,4]
[345980325,1734594666158,-500.0,0.00022191,4]
[345980326,1734594666168,-500.0,0.00022191,4]
[345980327,1734594666177,-500.0,0.00022191,4]
[345980328,1734594666187,-500.0,0.00022191,4]
[345980329,1734594666202,-500.0,0.00022191,4]
[345980330,1734594666212,-567.01,0.00022191,4]
[345980331,1734594666222,-500.0,0.00022191,4]
[345980332,1734594666232,-500.0,0.00022191,4]
[345980333,1734594666243,-500.0,0.00022191,4]
[345980334,1734594666252,-500.0,0.00022191,4]
[345980335,1734594666262,-13222.51339176,0.00022202,2]
[345980336,1734594666272,-543.2329225,0.00022269,2]
[345980337,1734594666282,-492.75,0.00022271,2]
[345980338,1734594666292,-1001.0,0.000223,2]
[345980339,1734594666302,-1000.0,0.000223,3]
[345980340,1734594666312,-98170.10621843,0.000223,2]
[345980341,1734594738993,-4000.0,0.00021416,2]
[345980342,1734594739021,-1000.0,0.00021817,2]
[345980343,1734594739048,-642.2463,0.00021817,2]
[345980344,1734594739077,-300.0,0.00021893,2]
[345980345,1734594739109,-4615.0,0.00021894,2]
[345980346,1734594739137,-440.90423918,0.00021917,4]
[345980347,1734594739166,-500.0,0.00021917,4]
[345980348,1734594739193,-500.0,0.00021917,4]
[345980349,1734594739224,-500.0,0.00021917,4]
[345980350,1734594739252,-500.0,0.00021917,4]
[345980351,1734594739281,-500.0,0.00021917,4]
[345980352,1734594739309,-825.06,0.00021917,4]
[345980353,1734594739336,-500.0,0.00021917,4]
[345980354,1734594739371,-634.72,0.00021917,4]
[345980355,1734594739398,-500.0,0.00021917,4]
[345980356,1734594739426,-3121.98,0.00021917,4]
[345980357,1734594739453,-500.0,0.00021917,4]
[345980358,1734594739480,-500.0,0.00021917,4]
[345980359,1734594739508,-307.03141783,0.00021917,4]
[345980360,1734594739538,-500.0,0.00021917,4]
[345980361,1734594739565,-500.0,0.00021917,4]
[345980362,1734594739600,-516.05,0.00021917,4]
[345980363,1734594739628,-718.09,0.00021917,4]
[345980364,1734594739657,-500.0,0.00021917,4]
[345980365,1734594739684,-500.0,0.00021917,4]
[345980366,1734594739712,-500.0,0.00021917,4]
[345980367,1734594739740,-500.0,0.00021917,4]
[345980368,1734594739768,-500.0,0.00021917,4]
[345980369,1734594739796,-871.68,0.00021917,4]
[345980370,1734594739824,-500.0,0.00021917,4]
[345980371,1734594739859,-500.0,0.00021917,2]
[345980372,1734594739886,-825.29,0.00021917,4]
[345980373,1734594740110,-500.0,0.00021917,4]
[345980374,1734594740139,-509.97,0.00021917,4]
[345980375,1734594740165,-166.77,0.00021944,2]
[345980376,1734594740192,-67349.3862,0.00021965,2]
[345980377,1734594740223,-150.0,0.0002199,2]
[345980378,1734594740251,-1488.72,0.00022065,4]
[345980379,1734594740278,-500.0,0.00022065,4]
[345980380,1734594740308,-500.0,0.00022065,4]
[345980381,1734594740335,-500.0,0.00022065,4]
[345980382,1734594740366,-500.0,0.00022065,4]
[345980383,1734594740393,-500.0,0.00022065,4]
[345980384,1734594740419,-1021.33,0.00022065,4]
[345980385,1734594740446,-500.0,0.00022065,4]
[345980386,1734594740472,-500.0,0.00022065,4]
[345980387,1734594740500,-825.42,0.00022065,4]
[345980388,1734594740526,-500.0,0.00022065,4]
[345980389,1734594740555,-150.0,0.00022072,2]
[345980390,1734594740583,-150.0,0.00022086,2]
[345980391,1734594740613,-150.0,0.00022135,2]
[345980392,1734594740641,-150.0,0.00022162,2]
[345980393,1734594740670,-150.0,0.00022179,2]
[345980394,1734594740699,-150.0,0.00022189,2]
[345980395,1734594740726,-34581.28947009,0.0002219,4]
[345980396,1734594740758,-4000.0,0.0002219,4]
[345980397,1734594740769,-1000.0,0.0002219,4]
[345980398,1734594740780,-642.2463,0.0002219,4]
[345980399,1734594740795,-300.0,0.0002219,4]
[345980400,1734594740807,-4615.0,0.0002219,4]
[345980401,1734594740818,-440.90423918,0.0002219,4]
[345980402,1734594740829,-500.0,0.0002219,4]
[345980403,1734594740840,-500.0,0.0002219,4]
[345980404,1734594740856,-500.0,0.0002219,4]
[345980405,1734594740867,-500.0,0.0002219,4]
[345980406,1734594740878,-500.0,0.0002219,4]
[345980407,1734594740890,-825.06,0.0002219,4]
[345980408,1734594740901,-500.0,0.0002219,4]
[345980409,1734594740912,-634.72,0.0002219,4]
[345980410,1734594740923,-500.0,0.0002219,4]
[345980411,1734594740934,-3121.98,0.0002219,4]
[345980412,1734594740945,-500.0,0.0002219,4]
[345980413,1734594740956,-500.0,0.0002219,4]
[345980414,1734594740967,-307.03141783,0.0002219,4]
[345980415,1734594740978,-500.0,0.0002219,4]
[345980416,1734594740992,-500.0,0.00021917,4]
[345980417,1734594741007,-516.05,0.0002219,4]
[345980418,1734594741018,-718.09,0.0002219,4]
[345980419,1734594741030,-500.0,0.0002219,4]
[345980420,1734594741041,-500.0,0.0002219,4]
[345980421,1734594741052,-500.0,0.0002219,4]
[345980422,1734594741063,-500.0,0.0002219,4]
[345980423,1734594741074,-500.0,0.0002219,4]
[345980424,1734594741089,-838.04278879,0.0002219,4]
[345980425,1734594741099,-33.63721121,0.0002219,4]
[345980426,1734594741114,-500.0,0.0002219,4]
[345980427,1734594741125,-500.0,0.0002219,4]
[345980428,1734594741147,-104.09278879,0.0002219,4]
[345980429,1734594741156,-500.0,0.0002219,4]
[345980430,1734594741165,-221.19721121,0.00022191,4]
[345980431,1734594741180,-278.80278879,0.00022191,4]
[345980432,1734594741190,-221.19721121,0.00022191,4]
[345980433,1734594741249,-278.80278879,0.00022191,4]
[345980434,1734594741258,-231.16721121,0.00022191,4]
[345980435,1734594741269,-166.77,0.00022191,4]
[345980436,1734594741284,-102.06278879,0.00022191,4]
[345980437,1734594741293,-825.06,0.00022191,4]
[345980438,1734594741302,-500.0,0.00022191,4]
[345980439,1734594741311,-544.55507467,0.00022191,4]
[345980440,1734594741321,-3121.98,0.00022191,4]
[345980441,1734594741330,-500.0,0.00022191,4]
[345980442,1734594741339,-500.0,0.00022191,4]
[345980443,1734594741350,-500.0,0.00022191,4]
[345980444,1734594741361,-516.05,0.00022191,4]
[345980445,1734594741369,-718.09,0.00022191,4]
[345980446,1734594741378,-500.0,0.00022191,4]
[345980447,1734594741387,-500.0,0.00022191,4]
[345980448,1734594741396,-500.0,0.00022191,4]
[345980449,1734594741405,-500.0,0.00022191,4]
[345980450,1734594741414,-500.0,0.00022191,4]
[345980451,1734594741423,-871.68,0.00022191,4]
[345980452,1734594741432,-601.67186,0.00022191,2]
[345980453,1734594741441,-500.0,0.00022191,2]
[345980454,1734594741450,-500.0,0.00022191,4]
[345980455,1734594741459,-825.29,0.00022191,4]
[345980456,1734594741468,-500.0,0.00022191,4]
[345980457,1734594741477,-509.97,0.00022191,4]
[345980458,1734594741486,-500.0,0.00022191,4]
[345980459,1734594741495,-150.0,0.00022196,2]
[345980460,1734594741504,-150.0,0.00022233,2]
[345980461,1734594741513,-150.0,0.00022271,2]
[345980462,1734594741522,-150.0,0.00022275,2]
[345980463,1734594741531,-150.0,0.00022288,2]
[345980464,1734594741540,-150.0,0.00022291,2]
[345980465,1734594741549,-150.0,0.00022296,2]
[345980466,1734594741558,-51162.97647654,0.000223,2]
[345980467,1734594741573,-150.0,0.000223,2]
[345980468,1734594741584,-1488.72,0.000223,2]
[345980469,1734594741599,-500.0,0.000223,2]
[345980470,1734594741610,-500.0,0.000223,2]
[345980471,1734594741621,-500.0,0.000223,2]
[345980472,1734594741632,-500.0,0.000223,2]
[345980473,1734594741644,-500.0,0.000223,2]
[345980474,1734594741655,-1021.33,0.000223,2]
[345980475,1734594741670,-500.0,0.0002219,4]
[345980476,1734594741685,-500.0,0.000223,2]
[345980477,1734594741705,-825.42,0.000223,2]
[345980478,1734594741716,-500.0,0.000223,2]
[345980479,1734594741727,-150.0,0.000223,2]
[345980480,1734594741739,-150.0,0.000223,2]
[345980481,1734594741750,-150.0,0.000223,2]
[345980482,1734594741761,-150.0,0.000223,2]
[345980483,1734594741771,-150.0,0.000223,2]
[345980484,1734594741782,-150.0,0.000223,2]
[345980485,1734594741793,-60040.41421589,0.000223,2]
[345980486,1734594818990,-153.0,0.00020911,2]
[345980487,1734594819018,-153.0,0.00020911,2]
[345980488,1734594819046,-153.0,0.00020911,2]
[345980489,1734594819074,-500.0,0.00021917,4]
[345980490,1734594819102,-468.18064424,0.00021917,4]
[345980491,1734594819129,-500.0,0.00021917,4]
[345980492,1734594819156,-500.0,0.00021917,4]
[345980493,1734594819185,-592.25,0.00021917,4]
[345980494,1734594819212,-309.22,0.00021917,4]
[345980495,1734594819242,-576.8,0.00021917,4]
[345980496,1734594819270,-500.0,0.00021917,4]
[345980497,1734594819296,-500.0,0.00021917,4]
[345980498,1734594819325,-500.0,0.00021917,4]
[345980499,1734594819353,-500.0,0.00021917,4]
[345980500,1734594819380,-1292.81,0.00021917,4]
[345980501,1734594819407,-611.27519765,0.00021917,4]
[345980502,1734594819435,-438.68,0.00021917,4]
[345980503,1734594819461,-500.0,0.00021917,4]
[345980504,1734594819488,-508.56779226,0.00021917,4]
[345980505,1734594819514,-500.0,0.00021917,4]
[345980506,1734594819541,-230.36,0.00021917,4]
[345980507,1734594819567,-500.0,0.00021917,4]
[345980508,1734594819594,-500.0,0.00021917,4]
[345980509,1734594819621,-2120.02,0.00021917,4]
[345980510,1734594819648,-500.0,0.00021917,4]
[345980511,1734594819677,-500.0,0.00021917,4]
[345980512,1734594819704,-575.04172697,0.00021917,4]
[345980513,1734594819730,-500.0,0.00021917,4]
[345980514,1734594819756,-500.0,0.00021917,4]
[345980515,1734594819783,-186.058657,0.00021917,4]
[345980516,1734594819809,-154.088307,0.00021917,4]
[345980517,1734594819836,-500.0,0.00021917,2]
[345980518,1734594819862,-480.82528469,0.00021917,4]
[345980519,1734594819890,-500.0,0.00021917,4]
[345980520,1734594819919,-500.0,0.00021917,4]
[345980521,1734594819946,-500.0,0.00021917,4]
[345980522,1734594819973,-500.0,0.00021917,4]
[345980523,1734594820000,-500.0,0.00021917,4]
[345980524,1734594820027,-500.0,0.00021917,4]
[345980525,1734594820053,-500.0,0.00021917,4]
[345980526,1734594820079,-500.0,0.00021917,4]
[345980527,1734594820106,-500.0,0.00021917,4]
[345980528,1734594820132,-500.0,0.00021917,4]
[345980529,1734594820159,-500.0,0.00021917,4]
[345980530,1734594820186,-78994.68355859,0.00021966,2]
[345980531,1734594820213,-500.0,0.00022065,4]
[345980532,1734594820244,-510.28515918,0.00022065,4]
[345980533,1734594820273,-500.0,0.00022065,4]
[345980534,1734594820301,-500.0,0.00022065,4]
[345980535,1734594820329,-281.05759876,0.00022065,4]
[345980536,1734594820355,-500.0,0.00022065,4]
[345980537,1734594820382,-814.69,0.00022065,4]
[345980538,1734594820409,-704.25,0.00022065,4]
[345980539,1734594820437,-500.0,0.00022065,4]
[345980540,1734594820464,-500.0,0.00022065,4]
[345980541,1734594820492,-500.0,0.00022065,4]
[345980542,1734594820519,-765.21,0.00022065,4]
[345980543,1734594820695,-370.02,0.00022065,4]
[345980544,1734594820734,-500.0,0.00022065,4]
[345980545,1734594820762,-670.02,0.00022065,4]
[345980546,1734594820789,-500.0,0.00022065,4]
[345980547,1734594820816,-500.0,0.00022121,2]
[345980548,1734594820844,-500.0,0.00022122,2]
[345980549,1734594820871,-500.0,0.00022122,2]
[345980550,1734594820899,-500.0,0.0002219,4]
[345980551,1734594820926,-387.2873639,0.0002219,4]
[345980552,1734594820954,-610.02,0.0002219,4]
[345980553,1734594820984,-732.52,0.0002219,4]
[345980554,1734594821014,-500.0,0.0002219,4]
[345980555,1734594821042,-560.6,0.0002219,4]
[345980556,1734594821070,-1216.67,0.0002219,4]
[345980557,1734594821098,-500.0,0.0002219,4]
[345980558,1734594821126,-949.83,0.0002219,4]
[345980559,1734594821154,-1496.47,0.0002219,4]
[345980560,1734594821186,-718.93,0.0002219,4]
[345980561,1734594821214,-500.0,0.0002219,4]
[345980562,1734594821247,-615.77,0.0002219,4]
[345980563,1734594821277,-500.0,0.0002219,4]
[345980564,1734594821310,-953.58,0.0002219,4]
[345980565,1734594821342,-500.0,0.0002219,4]
[345980566,1734594821372,-1949.86,0.0002219,4]
[345980567,1734594821403,-500.0,0.0002219,4]
[345980568,1734594821431,-500.0,0.00022191,4]
[345980569,1734594821459,-500.0,0.00022191,4]
[345980570,1734594821487,-500.0,0.00022191,4]
[345980571,1734594821516,-592.25,0.00022191,4]
[345980572,1734594821543,-576.8,0.00022191,4]
[345980573,1734594821574,-484.56,0.00022191,4]
[345980574,1734594821602,-500.0,0.00022191,4]
[345980575,1734594821630,-500.0,0.00022191,4]
[345980576,1734594821658,-500.0,0.00022191,4]
[345980577,1734594821688,-1292.81,0.00022191,4]
[345980578,1734594821716,-500.0,0.00022191,4]
[345980579,1734594821744,-500.0,0.00022191,4]
[345980580,1734594821772,-500.0,0.00022191,4]
[345980581,1734594821800,-2120.02,0.00022191,4]
[345980582,1734594821828,-500.0,0.00022191,4]
[345980583,1734594821855,-500.0,0.00022191,4]
[345980584,1734594821882,-500.0,0.00022191,4]
[345980585,1734594821909,-500.0,0.00022191,4]
[345980586,1734594821938,-500.0,0.00022191,2]
[345980587,1734594821965,-500.0,0.00022191,4]
[345980588,1734594821993,-500.0,0.00022191,4]
[345980589,1734594822021,-500.0,0.00022191,4]
[345980590,1734594822048,-391.1057171,0.00022191,4]
[345980591,1734594822075,-500.0,0.00022191,4]
[345980592,1734594822103,-500.0,0.00022191,4]
[345980593,1734594822129,-500.0,0.00022191,4]
[345980594,1734594822157,-500.0,0.00022191,4]
[345980595,1734594822185,-500.0,0.00022191,4]
[345980596,1734594822207,-153.0,0.000223,2]
[345980597,1734594822219,-153.0,0.000223,2]
[345980598,1734594822240,-153.0,0.000223,2]
[345980599,1734594822252,-500.0,0.000223,2]
[345980600,1734594822267,-468.18064424,0.000223,2]
[345980601,1734594822280,-500.0,0.000223,2]
[345980602,1734594822291,-500.0,0.000223,2]
[345980603,1734594822302,-592.25,0.000223,2]
[345980604,1734594822314,-309.22,0.000223,2]
[345980605,1734594822340,-576.8,0.000223,2]
[345980606,1734594822351,-500.0,0.000223,2]
[345980607,1734594822367,-500.0,0.000223,2]
[345980608,1734594822386,-500.0,0.000223,2]
[345980609,1734594822399,-500.0,0.000223,2]
[345980610,1734594822414,-1292.81,0.000223,2]
[345980611,1734594822428,-611.27519765,0.000223,2]
[345980612,1734594822439,-438.68,0.000223,2]
[345980613,1734594822452,-500.0,0.000223,2]
[345980614,1734594822464,-508.56779226,0.000223,2]
[345980615,1734594822475,-500.0,0.000223,2]
[345980616,1734594822487,-230.36,0.000223,2]
[345980617,1734594822499,-500.0,0.000223,2]
[345980618,1734594822518,-500.0,0.000223,2]
[345980619,1734594822534,-2120.02,0.000223,2]
[345980620,1734594822550,-500.0,0.000223,2]
[345980621,1734594822561,-500.0,0.000223,2]
[345980622,1734594822573,-575.04172697,0.000223,2]
[345980623,1734594822585,-500.0,0.000223,2]
[345980624,1734594822596,-500.0,0.000223,2]
[345980625,1734594822608,-186.058657,0.000223,2]
[345980626,1734594822621,-154.088307,0.000223,2]
[345980627,1734594822633,-500.0,0.000223,2]
[345980628,1734594822650,-480.82528469,0.000223,2]
[345980629,1734594822669,-500.0,0.000223,2]
[345980630,1734594822686,-500.0,0.000223,2]
[345980631,1734594822698,-500.0,0.000223,2]
[345980632,1734594822713,-500.0,0.00021917,4]
[345980633,1734594822725,-500.0,0.000223,2]
[345980634,1734594822736,-500.0,0.000223,2]
[345980635,1734594822748,-500.0,0.000223,2]
[345980636,1734594822760,-500.0,0.000223,2]
[345980637,1734594822771,-500.0,0.000223,2]
[345980638,1734594822783,-500.0,0.000223,2]
[345980639,1734594822803,-500.0,0.000223,2]
[345980640,1734594822815,-78994.68355859,0.000223,2]
[345980641,1734594822831,-500.0,0.000223,2]
[345980642,1734594822846,-510.28515918,0.000223,2]
[345980643,1734594822857,-500.0,0.000223,2]
[345980644,1734594822868,-500.0,0.000223,2]
[345980645,1734594822880,-281.05759876,0.000223,2]
[345980646,1734594822891,-500.0,0.000223,2]
[345980647,1734594822903,-814.69,0.000223,2]
[345980648,1734594822915,-704.25,0.000223,2]
[345980649,1734594822929,-500.0,0.000223,2]
[345980650,1734594822941,-500.0,0.000223,2]
[345980651,1734594822965,-500.0,0.000223,2]
[345980652,1734594822982,-765.21,0.000223,2]
[345980653,1734594822994,-370.02,0.000223,2]
[345980654,1734594823010,-500.0,0.000223,2]
[345980655,1734594823026,-670.02,0.000223,2]
[345980656,1734594823251,-500.0,0.000223,2]
[345980657,1734594823263,-500.0,0.000223,2]
[345980658,1734594823277,-500.0,0.000223,2]
[345980659,1734594823289,-500.0,0.000223,2]
[345980660,1734594823300,-500.0,0.000223,2]
[345980661,1734594823312,-387.2873639,0.000223,2]
[345980662,1734594823325,-610.02,0.000223,2]
[345980663,1734594823337,-732.52,0.000223,2]
[345980664,1734594823349,-500.0,0.000223,2]
[345980665,1734594823375,-560.6,0.000223,2]
[345980666,1734594823386,-1216.67,0.000223,2]
[345980667,1734594823604,-500.0,0.000223,2]
[345980668,1734594823619,-949.83,0.000223,2]
[345980669,1734594823631,-1496.47,0.000223,2]
[345980670,1734594823643,-718.93,0.000223,2]
[345980671,1734594823655,-500.0,0.000223,2]
[345980672,1734594823666,-615.77,0.000223,2]
[345980673,1734594823678,-500.0,0.000223,2]
[345980674,1734594823692,-953.58,0.000223,2]
[345980675,1734594823712,-500.0,0.000223,2]
[345980676,1734594823723,-1949.86,0.000223,2]
[345980677,1734594823735,-500.0,0.000223,2]
[345980678,1734594823747,-500.0,0.000223,2]
[345980679,1734594823758,-500.0,0.000223,2]
[345980680,1734594823770,-500.0,0.000223,2]
[345980681,1734594823781,-592.25,0.000223,2]
[345980682,1734594823797,-576.8,0.000223,2]
[345980683,1734594823808,-484.56,0.000223,2]
[345980684,1734594823824,-500.0,0.000223,2]
[345980685,1734594823835,-500.0,0.000223,2]
[345980686,1734594823846,-500.0,0.000223,2]
[345980687,1734594823857,-1292.81,0.000223,2]
[345980688,1734594823872,-500.0,0.000223,2]
[345980689,1734594823884,-500.0,0.000223,2]
[345980690,1734594823895,-500.0,0.000223,2]
[345980691,1734594823910,-2120.02,0.000223,2]
[345980692,1734594823921,-500.0,0.000223,2]
[345980693,1734594823932,-500.0,0.000223,2]
[345980694,1734594823945,-500.0,0.000223,2]
[345980695,1734594823959,-500.0,0.000223,2]
[345980696,1734594823974,-500.0,0.000223,2]
[345980697,1734594823989,-500.0,0.00022191,4]
[345980698,1734594824000,-500.0,0.000223,2]
[345980699,1734594824011,-500.0,0.000223,2]
[345980700,1734594824022,-391.1057171,0.000223,2]
[345980701,1734594824037,-500.0,0.000223,2]
[345980702,1734594824049,-500.0,0.000223,2]
[345980703,1734594824061,-500.0,0.000223,2]
[345980704,1734594824076,-500.0,0.000223,2]
[345980705,1734594824088,-500.0,0.000223,2]
[345980706,1734594824099,-62660.04598532,0.000223,2]
[345980707,1734594859310,-3298.2517106,0.00020811,2]